{"text_format":"1","workbook":"xlsx","n_sheets":3,"sheets":["Overview","Example Instructions","Availability Assessment"],"not_rendered":{"charts":0,"images":0,"macros":1,"external_links":0,"defined_names":2,"comments":0,"pivot_tables":0},"unopened":[],"bounds":{"document_bytes":16777216,"sheet_cells":100000,"rows_first":2000,"rows_last":500,"rows_between":2000,"halvings":0,"cell_chars":16384,"cell_head_chars":4096},"cells_cut":0,"cells_raw":0,"read":"whole","date_system":"1900"}

{"sheet":"Overview","index":0,"n_rows":2,"n_cols":1,"rows_kept":2,"cut":false,"hidden":false,"merged":[]}
["Overview of the Assessment of the Availability of Mental Health Services"]
["CMS developed this draft template for use (1) at application and (2) in annual monitoring reports. As described in SMD #18-011:\n 1. CMS strongly encourages states to include in their application a thorough assessment of current availability of mental health services throughout the state, particularly crisis stabilization services; \n 2. CMS expects states to conduct annual assessments of the availability of mental health services throughout the state, particularly crisis stabilization services, and provide updates on steps taken to increase service availability. \n\nThe template is intended to guide states  in conducting a thorough assessment of availability across various components of a state’s mental health system. Suggested data elements describe the following providers and service settings:\n • Providers\n    -Psychiatrists and other providers authorized to prescribe\n    -Other practitioners authorized to treat mental illness\n • Community mental health centers (CMHCs)\n • Intensive outpatient/Partial hospitalization\n • Residential treatment facilities and beds\n • Inpatient facilities and beds\n • Crisis stabilization services\n • Federally Qualified Health Centers offering behavioral health services\n"]

{"sheet":"Example Instructions","index":1,"n_rows":12,"n_cols":2,"rows_kept":12,"cut":false,"hidden":false,"merged":[[8,1,8,11],[9,1,9,11],[11,1,11,11],[7,1,7,11],[0,1,0,11],[3,1,3,11],[4,1,4,11],[5,1,5,11],[6,1,6,11],[10,1,10,11],[2,1,2,11],[1,1,1,11]]}
[null,"Instructions for Completing the Assessment of the Availability of Mental Health Services (\"Availability Assessment\" tab)  "]
[null,"Note: Instructions for completing each cell of the availability assessment will be included in an instruction tab and in pop-up comments within the body of the assessment template. See below for an example of what such instructions will include.  "]
[null,"Each state will submit multiple availability assessments. The state will submit an initial assessment at the time of application and annual assessments thereafter. The state will select a consistent month in each year to populate the information in the template (e.g. provide initial information based on counts covering April 2019, and update the information based on counts covering April 2020, April 2021, April 2022, and April 2023). "]
[null,"Enter the state name, data entry date(s), and time period reflected in the assessment in cells C1-3."]
[null,"In column B, enter each geographic designation starting in cell B7. Add rows as needed to capture all geographic designations. The state should select and input geographic units of analysis. The state should consider how it divides its mental health system into smaller units or catchment areas to select geographic designations that will yield meaningful, actionable information. For example, the geographic designations could be counties, regions, or human services districts.  "]
[null,"In column C, starting in cell C8, enter the total number of adult Medicaid beneficiaries in each geographic designation ever enrolled in the most recent 12 month period for which data are available.  "]
[null,"In column D, starting in cell D8, enter the number of adults with SMI in each geographic designation. As defined on page 1 of the SMDL, adults with SMI are those age 21 and over, who currently, or at any time during the past year, have had a diagnosable mental, behavioral, or emotional disorder of sufficient duration to meet diagnostic criteria, that has resulted in functional impairment which substantially interferes with or limits one or more major life activities. Major life activities include activities of daily living (e.g., eating, bathing, dressing), instrumental activities of daily living (e.g., maintaining a household, managing money, getting around the community, taking prescribed medication), and functioning in social, family, and vocational/educational contexts."]
[null,"In column E, starting in cell E8, the inventory will automatically calculate the percent of adult Medicaid beneficiaries who have SMI in each geographic designation. The state should not input any values into this column or modify the formulas in this column. "]
[null,"In column F, starting in cell F8, enter the total number of Medicaid beneficiaries under the age of 21 in each geographic designation ever enrolled in the most recent 12 month period for which data are available. "]
[null,"In column G, starting in cell G8, enter the number of beneficiaries under the age of 21 with SED in each geographic designation. As defined on page 2 of the SMDL, individuals with SED are those who currently, or at any time during the past year, have had a diagnosable mental, behavioral, or emotional disorder of sufficient duration to meet diagnostic criteria that resulted in functional impairment which substantially interferes with or limits the child’s role or functioning in family, school, or community activities. Functional impairment” is defined as difficulties that substantially interfere with or limit a child or adolescent from achieving or maintaining one or more developmentally-appropriate social, behavioral, cognitive, communicative, or adaptive skills. "]
[null,"In column H, starting in cell H8, the inventory will automatically calculate the percent of beneficiaries under the age of 21 who have SED in each geographic designation. The state should not input any values into this column or modify the formulas in this column. "]
[null,"Additional rows will be added with instructions for completing the remaining columns of the \"Availability Assessment\" tab of the template. "]

{"sheet":"Availability Assessment","index":2,"n_rows":20,"n_cols":130,"rows_kept":20,"cut":false,"hidden":false,"merged":[[5,134,5,135],[5,111,5,117],[5,12,5,18],[5,19,5,25],[4,26,4,32],[4,118,4,126],[4,127,4,129],[4,33,4,39],[4,19,4,25],[5,40,5,45],[5,46,5,51],[5,52,5,58],[5,104,5,110],[5,98,5,103],[4,72,4,77],[4,78,4,84],[7,58,16,58],[7,71,16,71],[7,84,16,84],[4,2,4,11],[0,2,0,4],[1,2,1,4],[2,2,2,4],[5,5,5,7],[5,2,5,4],[5,8,5,10],[7,11,16,11],[7,18,16,18],[7,25,16,25],[7,32,16,32],[7,39,16,39],[4,12,4,18],[7,97,16,97],[7,110,16,110],[7,117,16,117],[7,126,16,126],[7,129,16,129],[5,59,5,64],[5,65,5,71],[5,72,5,77],[5,78,5,84],[5,91,5,97],[5,85,5,90],[4,111,4,117],[4,40,4,45],[4,46,4,51],[4,52,4,58],[4,59,4,64],[4,65,4,71],[4,85,4,90],[4,91,4,97],[4,98,4,103],[4,104,4,110]]}
[null,"State Name","Indiana"]
[null,"Date of Assessment","2019-07-01"]
[null,"Time Period Reflected in Assessment","2019-06-01"]
[]
[null,"Geographic Distribution","Beneficiaries",null,null,null,null,null,null,null,null,null,"Providers",null,null,null,null,null,null,"Providers",null,null,null,null,null,null,"Community Mental Health Centers",null,null,null,null,null,null,"Intensive Outpatient or Partial Hospitalization Providers",null,null,null,null,null,null,"Residential Mental Health Treatment Facilities ",null,null,null,null,null,"Residential Mental Health Treatment Facilities ",null,null,null,null,null,"Residential Mental Health Treatment Facilities ",null,null,null,null,null,null,"Residential Mental Health Treatment Facilities ",null,null,null,null,null,"Residential Mental Health Treatment Facilities ",null,null,null,null,null,null,"Inpatient",null,null,null,null,null,"Inpatient",null,null,null,null,null,null,"Inpatient",null,null,null,null,null,"Inpatient",null,null,null,null,null,null,"Inpatient",null,null,null,null,null,"Inpatient",null,null,null,null,null,null,"Inpatient",null,null,null,null,null,null,"Crisis Stabilization Services",null,null,null,null,null,null,null,null,"Federally Qualified Health Centers"]
[null,null,"Adult",null,null,"Under 21",null,null,"Total",null,null,null,"Psychiatrists or Other Practitioners Who Are Authorized to Prescribe",null,null,null,null,null,null,"Other Practitioners Authorized to Treat Mental Illness",null,null,null,null,null,null,null,null,null,null,null,null,null,null,null,null,null,null,null,null,"Residential Mental Health Treatment Facilities (Adult)",null,null,null,null,null,"Residential Mental Health Treatment Facilities (Adult)",null,null,null,null,null,"Residential Mental Health Treatment Facilities (Adult)",null,null,null,null,null,null,"Psychiatric Residential Treatment Facilities",null,null,null,null,null,"Psychiatric Residential Treatment Facilities",null,null,null,null,null,null,"Psychiatric Hospitals",null,null,null,null,null,"Psychiatric Hospitals",null,null,null,null,null,null,"Psychiatric Hospitals That Qualify As IMDs",null,null,null,null,null,"Psychiatric Hospitals That Qualify As IMDs",null,null,null,null,null,null,"Psychiatric Units",null,null,null,null,null,"Psychiatric Units",null,null,null,null,null,null,"Psychiatric Beds"]
[null,"Geographic designation","Number of Medicaid beneficiaries (Adult)","Number of Medicaid beneficiaries with SMI (Adult) ","Percent with SMI (Adult)","Number of Medicaid beneficiaries (Under 21)","Number of Medicaid beneficiaries with SED (Under 21)","Percent with SED (Under 21)","Number of Medicaid beneficiaries (Total)","Number of Medicaid beneficiaries with SMI or SED (Total)","Percent with SMI or SED (Total)","Beneficiary Category Notes","Number of Psychiatrists or Other Practitioners Who Are Authorized to Prescribe","Number of Medicaid-Enrolled Psychiatrists or Other Practitioners Who Are Authorized to Prescribe","Number of Medicaid-Enrolled Psychiatrists or Other Practitioners Who Are Authorized to Prescribe Accepting New Medicaid Patients","Ratio of Medicaid-Enrolled Psychiatrists or Other Prescribers to Medicaid beneficiaries with SMI/SED","Ratio of Medicaid-Enrolled Psychiatrists or Other Prescribers to Total Psychiatrists or Other Prescribers","Ratio of Medicaid-Enrolled Psychiatrists or Other Prescribers Accepting New Medicaid Patients to Medicaid-Enrolled Psychiatrists or Other Prescribers","Psychiatrists or Other Practitioners Who Are Authorized to Prescribe Category Notes","Number of Other Types of Practitioners Authorized to Treat Mental Illness ","Number of Medicaid-Enrolled Other Types of Practitioners Authorized to Treat Mental Illness ","Number of Medicaid-Enrolled Other Types of Practitioners Authorized to Treat Mental Illness Accepting New Medicaid Patients","Ratio of Medicaid-Enrolled  Practitioners Authorized to Treat Mental Illness to Medicaid Beneficiaries with SMI/ SED","Ratio of Medicaid-Enrolled  Practitioners Authorized to Treat Mental Illness to Total Practitioners Authorized to Treat Mental Illness","Ratio of Medicaid-Enrolled Practitioners Authorized to Treat Mental Illness Accepting New Patients to Medicaid-Enrolled Practitioners Authorized to Treat Mental Illness","Other Practitioner Category Notes","Number of CMHCs","Number of Medicaid- Enrolled CMHCs ","Number of Medicaid-Enrolled CMHCs Accepting New Medicaid Patients","Ratio of Medicaid- Enrolled CMHCs to Medicaid Beneficiaries with SMI/SED","Ratio of Medicaid- Enrolled CMHCs to Total CMHCs","Ratio of Medicaid-Enrolled CMHCs Accepting New Patients to Medicaid- Enrolled CMHCs","CMHC Category Notes","Number of Intensive Outpatient/Partial Hospitali-zation Providers","Number of Medicaid-Enrolled Intensive Outpatient/Partial Hospitali-zation Providers","Number of Medicaid-Enrolled Intensive Outpatient/Partial Hospitali-zation Providers Accepting New Medicaid Patients","Ratio of Medicaid- Enrolled Intensive Outpatient/\nPartial Hospitali-zation Providers to Medicaid Beneficiaries with SMI/SED","Ratio of Medicaid- Enrolled Intensive Outpatient/Partial Hospitali-zation Providers to Total Partial Hospitali-zation/Day Treatment Providers","Ratio of Medicaid- Enrolled Intensive Outpatient/\nPartial Hospitalization Providers Accepting New Medicaid Patients to Medicaid- Enrolled Partial Hospitalization/ Day Treatment Providers","Intensive Outpatient/ Partial Hospitali-zation Category Notes","Number of Residential Treatment Facilities (Adult)","Number of Medicaid- Enrolled Residential Treatment Facilities (Adult)","Number of Medicaid-Enrolled Residential Treatment Facilities Accepting New Medicaid Patients (Adult)","Ratio of Medicaid- Enrolled Residential Treatment Facilities (Adult) to Medicaid Beneficiaries with SMI (Adult)","Ratio of Medicaid-Enrolled Residential Treatment Facilities (Adult) to Total Residential Treatment Facilities (Adult)","Ratio of Number of Medicaid- Enrolled Residential Treatment Facilities (Adult) Accepting New Patients to Medicaid-Enrolled Residential Treatment Facilities (Adult)","Total Number of Residential Treatment Facility Beds (Adult)","Total Number of Medicaid- Enrolled Residential Treatment Beds (Adult)","Total Number of Medicaid- Enrolled Residential Treatment Beds Accepting New Adult Medicaid Patients","Number of Residential Treatment Facilities (Adult) that Qualify as IMDs ","Number of Medicaid- Enrolled Residential Treatment Facilities (Adult) that Qualify as IMDs","Number of Medicaid- Enrolled Residential Treatment Facilities (Adult) that Qualify as IMDs Accepting Medicaid Patients","Ratio of Medicaid- Enrolled Residential Treatment Beds to Medicaid Beneficiaries with SMI (Adult)","Ratio of Medicaid- Enrolled Residential Treatment Beds  to Total Residential Treatment Beds","Ratio of Medicaid- Enrolled Residential Treatment Beds Accepting New Medicaid Patients to Medicaid- Enrolled Residential Treatment Beds","Ratio of Medicaid- Enrolled Residential Treatment Facilities that Qualify as IMDs to Medicaid Beneficiaries with SMI (Adult)","Ratio of Medicaid- Enrolled Residential Treatment Facilities (Adult) that Qualify as IMDs to Total Residential Treatment Facilities (Adult) that Qualify as IMDs","Ratio of Medicaid- Enrolled Residential Treatment Facilities (Adult) that Qualify as IMDs Accepting Medicaid Patients to Medicaid- Enrolled Residential Treatment Facilities (Adult) that Qualify as IMDs","Residential Treatment Facility Category Notes (Adult)","Number of Psychiatric Residential Treatment Facilities (PRTF) (Under 21)","Number of Medicaid- Enrolled PRTFs","Number of Medicaid- Enrolled PRTFs Accepting New Medicaid Patients","Ratio of Medicaid-Enrolled PTRFs to Medicaid Beneficiaries with SED (Under 21)","Ratio of Medicaid- Enrolled PRTFs to Total PTRFs","Ratio of Medicaid- Enrolled PRTFs Accepting New Medicaid Patients to Number of Medicaid- Enrolled PRTFs","Total Number of PRTF Beds","Number of Medicaid-Enrolled PRTF Beds","Number of Medicaid-Enrolled PRTF Beds Accepting New Medicaid Patients","Ratio of Medicaid-Enrolled PRTF Beds to Medicaid Beneficiaries with SED","Ratio of Medicaid- Enrolled PRTFs Accepting New Medicaid Patients to Total Number of PRTFs","Ratio of Medicaid- Enrolled PRTFs Accepting New Medicaid Patients to Number of Medicaid- Enrolled PRTFs","Psychiatric Residential Treatment Facility (Under 21) Category Notes","Number of Public Psychiatric  Hospitals    ","Number of Private Psychiatric  Hospitals    ","Number of Medicaid-Enrolled Public Psychiatric Hospitals","Number of Medicaid-Enrolled Private Psychiatric Hospitals","Medicaid-Enrolled Public Psychiatric Hospitals Accepting New Medicaid Patients","Medicaid Enrolled Private Psychiatric Hospitals Accepting New Medicaid Patients","Ratio of Medicaid-Enrolled Public Psychiatric Hospitals to Medicaid Beneficiaries with SMI/SED ","Ratio of Medicaid-Enrolled Private Psychiatric Hospitals to Medicaid Beneficiaries with SMI/SED","Ratio of Medicaid-Enrolled Public Psychiatric Hospitals to Public Psychiatric Hospitals","Ratio of Medicaid-Enrolled Private Psychiatric Hospitals to Private Psychiatric Hospitals","Ratio of Medicaid-Enrolled Public Psychiatric Hospitals Accepting New Medicaid Patients to  Medicaid-Enrolled Public Psychiatric Hospitals","Ratio of Medicaid-Enrolled Private Psychiatric Hospitals Accepting New Medicaid Patients to  Medicaid-Enrolled Private Psychiatric Hospitals","Psychiatric Hospital Category Notes","Number of Public Psychiatric Hospitals that qualify as IMDs","Number of Private Psychiatric Hospitals that qualify as IMDs","Number of Medicaid-Enrolled Public Psychiatric Hospitals that qualify as IMDs","Number of Medicaid-Enrolled Private Psychiatric Hospitals that qualify as IMDs","Number of Medicaid-Enrolled Public Psychiatric Hospitals that qualify as IMDs Accepting New Medicaid Patients","Number of Medicaid-Enrolled Private Psychiatric Hospitals that qualify as IMDs Accepting New Medicaid Patients","Ratio of Medicaid-Enrolled Public Psychiatric Hospitals that qualify as IMDs to Medicaid Beneficiaries with SMI/SED ","Ratio of Medicaid-Enrolled Private Psychiatric Hospitals that qualify as IMDs to Medicaid Beneficiaries with SMI/SED","Ratio of Medicaid-Enrolled Public Psychiatric Hospitals that qualify as IMDs to Public Psychiatric Hospitals that qualify as IMDs","Ratio of Medicaid-Enrolled Private Psychiatric Hospitals that qualify as IMDs to Private Psychiatric Hospitals that qualify as IMDs","Ratio of Medicaid-Enrolled Public Psychiatric Hospitals that qualify as IMDs Accepting New Medicaid Patients to  Medicaid-Enrolled Public Psychiatric Hospitals that qualify as IMDs","Ratio of Medicaid-Enrolled Private Psychiatric Hospitals that qualify as IMDs Accepting New Medicaid Patients to  Medicaid-Enrolled Private Psychiatric Hospitals that qualify as IMDs","Psychiatric Hospitals That Qualify As IMDs Category Notes","Number of Psychiatric Units in Acute Care Hospitals","Number of Psychiatric Units in Critical Access Hospitals (CAHs)","Number of Medicaid- Enrolled Psychiatric Units in Acute Care Hospitals","Number of Medicaid-Enrolled Psychiatric Units in CAHs","Number of Medicaid-Enrolled Psychiatric Units in Acute Care Hospitals Accepting New Medicaid Patients","Number of Medicaid-Enrolled Psychiatric Units in CAHs Accepting New Medicaid Patients","Ratio of Medicaid-Enrolled Psychiatric Units in Acute Care Hospitals to Medicaid Beneficiaries with SMI/SED","Ratio of Medicaid-Enrolled Psychiatric Units in CAHs to Medicaid Beneficiaries with SMI/SED","Ratio of Medicaid-Enrolled Psychiatric Units in Acute Care Hospitals to Psychiatric Units in Acute Care Hospitals ","Ratio of Medicaid-Enrolled Psychiatric Units in CAHs to Psychiatric Units in Critical Access Hospitals ","Ratio of Medicaid-Enrolled Psychiatric Units in Acute Care Hospitals Accepting New Medicaid Patients to  Medicaid-Enrolled Psychiatric Units in Acute Care Hospitals","Ratio of Medicaid-Enrolled Psychiatric Units in CAHs Accepting New Medicaid Patients to  Medicaid-Enrolled Psychiatric Units in Critical Access Hospitals","Psychiatric Unit Category Notes","Number of Licensed Psychiatric  Hospital Beds (Psychiatric Hospital + Psychiatric Units)","Number of Medicaid-Enrolled Licensed Psychiatric Hospital Beds (Psychiatric Hospital + Psychiatric Units)","Number of Medicaid-Enrolled Licensed Psychiatric Hospital Beds Accepting New Medicaid Patients","Ratio of Medicaid-Enrolled Licensed Psychiatric Hospital Beds to Medicaid Beneficiaries with SMI/SED","Ratio of Medicaid-Enrolled Licensed Psychiatric Hospital Beds to Licensed Psychiatric Hospital Beds","Ratio of Medicaid-Enrolled Licensed Psychiatric Hospital Beds Accepting New Medicaid Patients to Medicaid-Enrolled Licensed Psychiatric Hospital Beds","Psychiatric Beds Category Notes","Number of Crisis Call Centers","Number of Mobile Crisis Units","Number of Crisis Observation/ Assessment Centers","Number of Coordinated Community Crisis Response Teams","Ratio of Crisis Call Centers to Medicaid Beneficiaries with SMI/SED","Ratio of Mobile Crisis Units to Medicaid Beneficiaries with SMI/SED","Ratio of Crisis Observation/ Assessment Centers to Medicaid Beneficiaries with SMI/SED","Ratio of Coordinated Community Crisis Response Teams to Medicaid Beneficiaries with SMI/SED","Crisis Stabilization Services Category Notes","Number FQHCs that Offer Behavioral Health Services","Ratio of FQHCs that Offer Behavioral Health Services to Medicaid Beneficiaries with SMI/SED","FQHC Category Notes"]
[{"$f":"TEXT(1,\"#.\")","v":"1."},"Statewide",761825,44943,{"$f":"IFERROR(D8/C8,\"-\")","v":5.8993863420076786E-2},698360,39100,{"$f":"IFERROR(G8/F8,\"-\")","v":5.5988315481986371E-2},{"$f":"C8+F8","v":1460185},{"$f":"D8+G8","v":84043},{"$f":"IFERROR(J8/I8,\"-\")","v":5.7556405523957584E-2},"SMI & SED prevalence is based on Medicaid enrollees accessing a DMHA certified provider. SED data is captured for those under 18.",433,336,265,{"$f":"IFERROR(N8/J8,\"-\")","v":3.9979534286020248E-3},{"$f":"IFERROR(N8/M8,\"-\")","v":0.77598152424942268},{"$f":"IFERROR(O8/N8,\"-\")","v":0.78869047619047616},"This data currently includes only psychiatrists. In Indiana, advanced practice nurses who complete a certification are also authorized to prescribe psychotropic medications. This data is not readily available for this submission; the State will work toward a methodology for gathering for future submissions. ",966,1212,604,{"$f":"IFERROR(U8/J8,\"-\")","v":1.4421189153171591E-2},{"$f":"IFERROR(U8/T8,\"-\")","v":1.2546583850931676},{"$f":"IFERROR(V8/U8,\"-\")","v":0.49834983498349833},"Midlevel behavioral health practitioners do not independently enroll in Indiana Medicaid; they must bill under the supervision of an HSPP or psychiatrist. Therefore, only HSPPs are included. Additionally, the number of Medicaid enrolled appears larger than number licensed as the number of Medicaid enrolled providers include those in out-of-state border cities treated as in-state providers and also includes individuals practicing at multiple service locations. The number accepting new patients is based on MCO data. To avoid duplication of practitioners enrolled in multiple MCOs, data from the MCO with the largest network is included. The number accepting new patients may therefore be higher if there are providers enrolled in a different MCO. The state will work toward a methodology to improve for future submissions.",24,24,24,{"$f":"IFERROR(AB8/J8,\"-\")","v":2.855681020430018E-4},{"$f":"IFERROR(AB8/AA8,\"-\")","v":1},{"$f":"IFERROR(AC8/AB8,\"-\")","v":1},null,"N/A","N/A","N/A","N/A","N/A","N/A","The # of IOP/PHP providers in the state/Medicaid enrolled is not collected as this is not a specific license or provider type. ","N/A","N/A","N/A",null,{"$f":"IFERROR(AP8/AO8,\"-\")","v":"-"},{"$f":"IFERROR(AQ8/AP8,\"-\")","v":"-"},"N/A","N/A","N/A","N/A","N/A","N/A",{"$f":"IFERROR(AV8/D8,\"-\")","v":"-"},{"$f":"IFERROR(AV8/AU8,\"-\")","v":"-"},{"$f":"IFERROR(AW8/AV8,\"-\")","v":"-"},{"$f":"IFERROR(AY8/D8,\"-\")","v":"-"},{"$f":"IFERROR(AY8/AX8,\"-\")","v":"-"},{"$f":"IFERROR(AZ8/AY8,\"-\")","v":"-"},"Adult SMI residential treatment facilities are not an applicable provider type in the state.",12,12,12,{"$f":"IFERROR(BI8/G8,\"-\")","v":3.0690537084398974E-4},{"$f":"IFERROR(BI8/BH8,\"-\")","v":1},{"$f":"IFERROR(BJ8/BI8,\"-\")","v":1},377,377,377,{"$f":"IFERROR(BN8/G8,\"-\")","v":9.6419437340153451E-3},{"$f":"IFERROR(BO8/BN8,\"-\")","v":1},{"$f":"IFERROR(BP8/BO8,\"-\")","v":1},null,6,28,6,23,6,23,{"$f":"IFERROR(BW8/J8,\"-\")","v":7.1392025510750451E-5},{"$f":"IFERROR(BX8/J8,\"-\")","v":2.7366943112454339E-4},{"$f":"IFERROR(BW8/BU8,\"-\")","v":1},{"$f":"IFERROR(BX8/BV8,\"-\")","v":0.8214285714285714},{"$f":"IFERROR(BY8/BW8,\"-\")","v":1},{"$f":"IFERROR(BZ8/BX8,\"-\")","v":1},null,6,13,6,13,6,13,{"$f":"IFERROR(CJ8/J8,\"-\")","v":7.1392025510750451E-5},{"$f":"IFERROR(CK8/J8,\"-\")","v":1.5468272193995932E-4},{"$f":"IFERROR(CJ8/CH8,\"-\")","v":1},{"$f":"IFERROR(CK8/CI8,\"-\")","v":1},{"$f":"IFERROR(CL8/CJ8,\"-\")","v":1},{"$f":"IFERROR(CM8/CK8,\"-\")","v":1},null,32,2,28,2,28,2,{"$f":"IFERROR(CW8/J8,\"-\")","v":3.3316278571683542E-4},{"$f":"IFERROR(CX8/J8,\"-\")","v":2.3797341836916818E-5},{"$f":"IFERROR(CW8/CU8,\"-\")","v":0.875},{"$f":"IFERROR(CX8/CV8,\"-\")","v":1},{"$f":"IFERROR(CY8/CW8,\"-\")","v":1},{"$f":"IFERROR(CZ8/CX8,\"-\")","v":1},null,2982,2752,2752,{"$f":"IFERROR(DI8/CJ8,\"-\")","v":458.66666666666669},{"$f":"IFERROR(DI8/DH8,\"-\")","v":0.92287055667337359},{"$f":"IFERROR(DJ8/DI8,\"-\")","v":1},null,24,5,7,"N/A",{"$f":"IFERROR(DO8/J8,\"-\")","v":2.855681020430018E-4},{"$f":"IFERROR(DP8/J8,\"-\")","v":5.949335459229204E-5},{"$f":"IFERROR(DQ8/J8,\"-\")","v":8.3290696429208855E-5},{"$f":"IFERROR(DR8/J8,\"-\")","v":"-"},null,23,{"$f":"IFERROR(DX8/J8,\"-\")","v":2.7366943112454339E-4}]
[{"$f":"TEXT(A8+1,\"#.\")","v":"2."},null,null,null,"-",null,null,{"$f":"IFERROR(G9/F9,\"-\")","v":"-"},{"$f":"C9+F9","v":0},0,"-",null,null,null,null,{"$f":"IFERROR(N9/J9,\"-\")","v":"-"},{"$f":"IFERROR(N9/M9,\"-\")","v":"-"},{"$f":"IFERROR(O9/N9,\"-\")","v":"-"},null,null,null,null,{"$f":"IFERROR(U9/J9,\"-\")","v":"-"},{"$f":"IFERROR(U9/T9,\"-\")","v":"-"},{"$f":"IFERROR(V9/U9,\"-\")","v":"-"},null,null,null,null,{"$f":"IFERROR(AB9/J9,\"-\")","v":"-"},{"$f":"IFERROR(AB9/AA9,\"-\")","v":"-"},{"$f":"IFERROR(AC9/AB9,\"-\")","v":"-"},null,null,null,null,{"$f":"IFERROR(AI9/J9,\"-\")","v":"-"},{"$f":"IFERROR(AI9/AH9,\"-\")","v":"-"},{"$f":"IFERROR(AJ9/AI9,\"-\")","v":"-"},null,null,null,null,{"$f":"IFERROR(AP9/J9,\"-\")","v":"-"},"-","-",null,null,null,null,null,null,"-","-","-",{"$f":"IFERROR(AY9/D9,\"-\")","v":"-"},{"$f":"IFERROR(AY9/AX9,\"-\")","v":"-"},{"$f":"IFERROR(AZ9/AY9,\"-\")","v":"-"},null,null,null,null,{"$f":"IFERROR(BI9/G9,\"-\")","v":"-"},{"$f":"IFERROR(BI9/BH9,\"-\")","v":"-"},{"$f":"IFERROR(BJ9/BI9,\"-\")","v":"-"},null,null,null,{"$f":"IFERROR(BN9/G9,\"-\")","v":"-"},{"$f":"IFERROR(BO9/BN9,\"-\")","v":"-"},{"$f":"IFERROR(BP9/BO9,\"-\")","v":"-"},null,null,null,null,null,null,null,{"$f":"IFERROR(BW9/J9,\"-\")","v":"-"},{"$f":"IFERROR(BX9/J9,\"-\")","v":"-"},{"$f":"IFERROR(BW9/BU9,\"-\")","v":"-"},{"$f":"IFERROR(BX9/BV9,\"-\")","v":"-"},{"$f":"IFERROR(BY9/BW9,\"-\")","v":"-"},{"$f":"IFERROR(BZ9/BX9,\"-\")","v":"-"},null,null,null,null,null,null,null,{"$f":"IFERROR(CJ9/J9,\"-\")","v":"-"},{"$f":"IFERROR(CK9/J9,\"-\")","v":"-"},{"$f":"IFERROR(CJ9/CH9,\"-\")","v":"-"},{"$f":"IFERROR(CK9/CI9,\"-\")","v":"-"},{"$f":"IFERROR(CL9/CJ9,\"-\")","v":"-"},{"$f":"IFERROR(CM9/CK9,\"-\")","v":"-"},null,null,null,null,null,null,null,{"$f":"IFERROR(CW9/J9,\"-\")","v":"-"},{"$f":"IFERROR(CX9/J9,\"-\")","v":"-"},{"$f":"IFERROR(CW9/CU9,\"-\")","v":"-"},{"$f":"IFERROR(CX9/CV9,\"-\")","v":"-"},{"$f":"IFERROR(CY9/CW9,\"-\")","v":"-"},{"$f":"IFERROR(CZ9/CX9,\"-\")","v":"-"},null,null,null,null,{"$f":"IFERROR(DI9/CJ9,\"-\")","v":"-"},{"$f":"IFERROR(DI9/DH9,\"-\")","v":"-"},{"$f":"IFERROR(DJ9/DI9,\"-\")","v":"-"},null,null,null,null,null,{"$f":"IFERROR(DO9/J9,\"-\")","v":"-"},{"$f":"IFERROR(DP9/J9,\"-\")","v":"-"},{"$f":"IFERROR(DQ9/J9,\"-\")","v":"-"},{"$f":"IFERROR(DR9/J9,\"-\")","v":"-"},null,null,{"$f":"IFERROR(DX9/J9,\"-\")","v":"-"}]
[{"$f":"TEXT(A9+1,\"#.\")","v":"3."},null,null,null,"-",null,null,{"$f":"IFERROR(G10/F10,\"-\")","v":"-"},0,0,"-",null,null,null,null,"-","-","-",null,null,null,null,"-","-","-",null,null,null,null,"-","-","-",null,null,null,null,"-","-","-",null,null,null,null,"-","-","-",null,null,null,null,null,null,"-","-","-","-","-","-",null,null,null,null,"-","-","-",null,null,null,"-","-","-",null,null,null,null,null,null,null,"-","-","-","-","-","-",null,null,null,null,null,null,null,"-","-","-","-","-","-",null,null,null,null,null,null,null,"-","-","-","-","-","-",null,null,null,null,"-","-","-",null,null,null,null,null,"-","-","-","-",null,null,"-"]
["4.",null,null,null,"-",null,null,"-",0,0,"-",null,null,null,null,"-","-","-",null,null,null,null,"-","-","-",null,null,null,null,"-","-","-",null,null,null,null,"-","-","-",null,null,null,null,"-","-","-",null,null,null,null,null,null,"-","-","-","-","-","-",null,null,null,null,"-","-","-",null,null,null,"-","-","-",null,null,null,null,null,null,null,"-","-","-","-","-","-",null,null,null,null,null,null,null,"-","-","-","-","-","-",null,null,null,null,null,null,null,"-","-","-","-","-","-",null,null,null,null,"-","-","-",null,null,null,null,null,"-","-","-","-",null,null,"-"]
["5.",null,null,null,"-",null,null,"-",0,0,"-",null,null,null,null,"-","-","-",null,null,null,null,"-","-","-",null,null,null,null,"-","-","-",null,null,null,null,"-","-","-",null,null,null,null,"-","-","-",null,null,null,null,null,null,"-","-","-","-","-","-",null,null,null,null,"-","-","-",null,null,null,"-","-","-",null,null,null,null,null,null,null,"-","-","-","-","-","-",null,null,null,null,null,null,null,"-","-","-","-","-","-",null,null,null,null,null,null,null,"-","-","-","-","-","-",null,null,null,null,"-","-","-",null,null,null,null,null,"-","-","-","-",null,null,"-"]
["6.",null,null,null,"-",null,null,"-",0,0,"-",null,null,null,null,"-","-","-",null,null,null,null,"-","-","-",null,null,null,null,"-","-","-",null,null,null,null,"-","-","-",null,null,null,null,"-","-","-",null,null,null,null,null,null,"-","-","-","-","-","-",null,null,null,null,"-","-","-",null,null,null,"-","-","-",null,null,null,null,null,null,null,"-","-","-","-","-","-",null,null,null,null,null,null,null,"-","-","-","-","-","-",null,null,null,null,null,null,null,"-","-","-","-","-","-",null,null,null,null,"-","-","-",null,null,null,null,null,"-","-","-","-",null,null,"-"]
["7.",null,null,null,"-",null,null,"-",0,0,"-",null,null,null,null,"-","-","-",null,null,null,null,"-","-","-",null,null,null,null,"-","-","-",null,null,null,null,"-","-","-",null,null,null,null,"-","-","-",null,null,null,null,null,null,"-","-","-","-","-","-",null,null,null,null,"-","-","-",null,null,null,"-","-","-",null,null,null,null,null,null,null,"-","-","-","-","-","-",null,null,null,null,null,null,null,"-","-","-","-","-","-",null,null,null,null,null,null,null,"-","-","-","-","-","-",null,null,null,null,"-","-","-",null,null,null,null,null,"-","-","-","-",null,null,"-"]
["8.",null,null,null,"-",null,null,"-",0,0,"-",null,null,null,null,"-","-","-",null,null,null,null,"-","-","-",null,null,null,null,"-","-","-",null,null,null,null,"-","-","-",null,null,null,null,{"$f":"IFERROR(AP15/D15,\"-\")","v":"-"},"-","-",null,null,null,null,null,null,"-","-","-","-","-","-",null,null,null,null,"-","-","-",null,null,null,"-","-","-",null,null,null,null,null,null,null,"-","-","-","-","-","-",null,null,null,null,null,null,null,"-","-","-","-","-","-",null,null,null,null,null,null,null,"-","-","-","-","-","-",null,null,null,null,"-","-","-",null,null,null,null,null,"-","-","-","-",null,null,"-"]
["9.",null,null,null,"-",null,null,"-",0,0,"-",null,null,null,null,"-","-","-",null,null,null,null,"-","-","-",null,null,null,null,"-","-","-",null,null,null,null,"-","-","-",null,null,null,null,{"$f":"IFERROR(AP16/D16,\"-\")","v":"-"},"-","-",null,null,null,null,null,null,"-","-","-","-","-","-",null,null,null,null,"-","-","-",null,null,null,"-","-","-",null,null,null,null,null,null,null,"-","-","-","-","-","-",null,null,null,null,null,null,null,"-","-","-","-","-","-",null,null,null,null,null,null,null,"-","-","-","-","-","-",null,null,null,null,"-","-","-",null,null,null,null,null,"-","-","-","-",null,null,"-"]
["10.",null,null,null,"-",null,null,"-",0,0,"-",null,null,null,null,"-","-","-",null,null,null,null,"-","-","-",null,null,null,null,"-","-","-",null,null,null,null,"-","-","-",null,null,null,null,{"$f":"IFERROR(AP17/J17,\"-\")","v":"-"},"-","-",null,null,null,null,null,null,"-","-","-","-","-","-",null,null,null,null,"-","-","-",null,null,null,"-","-","-",null,null,null,null,null,null,null,"-","-","-","-","-","-",null,null,null,null,null,null,null,"-","-","-","-","-","-",null,null,null,null,null,null,null,"-","-","-","-","-","-",null,null,null,null,"-","-","-",null,null,null,null,null,{"$f":"IFERROR(DO17/J17,\"-\")","v":"-"},{"$f":"IFERROR(DP17/J17,\"-\")","v":"-"},"-",{"$f":"IFERROR(DR17/J17,\"-\")","v":"-"},null,null,{"$f":"IFERROR(DX17/J17,\"-\")","v":"-"}]
[null,"Total",{"$f":"SUM(C8:OFFSET(C18,-1,0))","v":761825},{"$f":"SUM(D8:OFFSET(D18,-1,0))","v":44943},5.8993863420076786E-2,{"$f":"SUM(F8:OFFSET(F18,-1,0))","v":698360},{"$f":"SUM(G8:OFFSET(G18,-1,0))","v":39100},5.5988315481986371E-2,{"$f":"SUM(I8:I17)","v":1460185},{"$f":"SUM(J8:J17)","v":84043},{"$f":"IFERROR(J18/I18,\"-\")","v":5.7556405523957584E-2},null,{"$f":"SUM(M8:OFFSET(M18,-1,0))","v":433},{"$f":"SUM(N8:OFFSET(N18,-1,0))","v":336},{"$f":"SUM(O8:OFFSET(O18,-1,0))","v":265},3.9979534286020248E-3,0.77598152424942268,0.78869047619047616,null,{"$f":"SUM(T8:OFFSET(T18,-1,0))","v":966},{"$f":"SUM(U8:OFFSET(U18,-1,0))","v":1212},{"$f":"SUM(V8:OFFSET(V18,-1,0))","v":604},1.4421189153171591E-2,1.2546583850931676,0.49834983498349833,null,{"$f":"SUM(AA8:OFFSET(AA18,-1,0))","v":24},{"$f":"SUM(AB8:OFFSET(AB18,-1,0))","v":24},{"$f":"SUM(AC8:OFFSET(AC18,-1,0))","v":24},2.855681020430018E-4,1,1,null,{"$f":"SUM(AH8:OFFSET(AH18,-1,0))","v":0},{"$f":"SUM(AI8:OFFSET(AI18,-1,0))","v":0},{"$f":"SUM(AJ8:OFFSET(AJ18,-1,0))","v":0},0,"-","-",null,{"$f":"SUM(AO8:OFFSET(AO18,-1,0))","v":0},{"$f":"SUM(AP8:OFFSET(AP18,-1,0))","v":0},{"$f":"SUM(AQ8:OFFSET(AQ18,-1,0))","v":0},{"$f":"IFERROR(AP18/J18,\"-\")","v":0},"-","-",{"$f":"SUM(AU8:OFFSET(AU18,-1,0))","v":0},{"$f":"SUM(AV8:OFFSET(AV18,-1,0))","v":0},{"$f":"SUM(AW8:OFFSET(AW18,-1,0))","v":0},{"$f":"SUM(AX8:OFFSET(AX18,-1,0))","v":0},{"$f":"SUM(AY8:OFFSET(AY18,-1,0))","v":0},{"$f":"SUM(AZ8:OFFSET(AZ18,-1,0))","v":0},0,"-","-",0,"-","-",null,{"$f":"SUM(BH8:OFFSET(BH18,-1,0))","v":12},{"$f":"SUM(BI8:OFFSET(BI18,-1,0))","v":12},{"$f":"SUM(BJ8:OFFSET(BJ18,-1,0))","v":12},3.0690537084398974E-4,1,1,{"$f":"SUM(BN8:OFFSET(BN18,-1,0))","v":377},{"$f":"SUM(BO8:OFFSET(BO18,-1,0))","v":377},{"$f":"SUM(BP8:OFFSET(BP18,-1,0))","v":377},9.6419437340153451E-3,1,1,null,{"$f":"SUM(BU8:OFFSET(BU18,-1,0))","v":6},{"$f":"SUM(BV8:OFFSET(BV18,-1,0))","v":28},{"$f":"SUM(BW8:OFFSET(BW18,-1,0))","v":6},{"$f":"SUM(BX8:OFFSET(BX18,-1,0))","v":23},{"$f":"SUM(BY8:OFFSET(BY18,-1,0))","v":6},{"$f":"SUM(BZ8:OFFSET(BZ18,-1,0))","v":23},{"$f":"IFERROR(BW18/J18,\"-\")","v":7.1392025510750451E-5},{"$f":"IFERROR(BX18/J18,\"-\")","v":2.7366943112454339E-4},{"$f":"IFERROR(BW18/BU18,\"-\")","v":1},{"$f":"IFERROR(BX18/BV18,\"-\")","v":0.8214285714285714},{"$f":"IFERROR(BY18/BW18,\"-\")","v":1},{"$f":"IFERROR(BZ18/BX18,\"-\")","v":1},null,{"$f":"SUM(CH8:OFFSET(CH18,-1,0))","v":6},{"$f":"SUM(CI8:OFFSET(CI18,-1,0))","v":13},{"$f":"SUM(CJ8:OFFSET(CJ18,-1,0))","v":6},{"$f":"SUM(CK8:OFFSET(CK18,-1,0))","v":13},{"$f":"SUM(CL8:OFFSET(CL18,-1,0))","v":6},{"$f":"SUM(CM8:OFFSET(CM18,-1,0))","v":13},{"$f":"IFERROR(CJ18/J18,\"-\")","v":7.1392025510750451E-5},{"$f":"IFERROR(CK18/J18,\"-\")","v":1.5468272193995932E-4},{"$f":"IFERROR(CJ18/CH18,\"-\")","v":1},{"$f":"IFERROR(CK18/CI18,\"-\")","v":1},{"$f":"IFERROR(CL18/CJ18,\"-\")","v":1},{"$f":"IFERROR(CM18/CK18,\"-\")","v":1},null,{"$f":"SUM(CU8:OFFSET(CU18,-1,0))","v":32},{"$f":"SUM(CV8:OFFSET(CV18,-1,0))","v":2},{"$f":"SUM(CW8:OFFSET(CW18,-1,0))","v":28},{"$f":"SUM(CX8:OFFSET(CX18,-1,0))","v":2},{"$f":"SUM(CY8:OFFSET(CY18,-1,0))","v":28},{"$f":"SUM(CZ8:OFFSET(CZ18,-1,0))","v":2},{"$f":"IFERROR(CW18/J18,\"-\")","v":3.3316278571683542E-4},{"$f":"IFERROR(CX18/J18,\"-\")","v":2.3797341836916818E-5},{"$f":"IFERROR(CW18/CU18,\"-\")","v":0.875},{"$f":"IFERROR(CX18/CV18,\"-\")","v":1},{"$f":"IFERROR(CY18/CW18,\"-\")","v":1},{"$f":"IFERROR(CZ18/CX18,\"-\")","v":1},null,{"$f":"SUM(DH8:OFFSET(DH18,-1,0))","v":2982},{"$f":"SUM(DI8:OFFSET(DI18,-1,0))","v":2752},{"$f":"SUM(DJ8:OFFSET(DJ18,-1,0))","v":2752},{"$f":"IFERROR(DI18/CJ18,\"-\")","v":458.66666666666669},{"$f":"IFERROR(DI18/DH18,\"-\")","v":0.92287055667337359},{"$f":"IFERROR(DJ18/DI18,\"-\")","v":1},null,{"$f":"SUM(DO8:OFFSET(DO18,-1,0))","v":24},{"$f":"SUM(DP8:OFFSET(DP18,-1,0))","v":5},{"$f":"SUM(DQ8:OFFSET(DQ18,-1,0))","v":7},{"$f":"SUM(DR8:OFFSET(DR18,-1,0))","v":0},{"$f":"IFERROR(DO18/J18,\"-\")","v":2.855681020430018E-4},{"$f":"IFERROR(DP18/J18,\"-\")","v":5.949335459229204E-5},{"$f":"IFERROR(DQ18/J18,\"-\")","v":8.3290696429208855E-5},{"$f":"IFERROR(DR18/J18,\"-\")","v":0},null,{"$f":"SUM(DX8:OFFSET(DX18,-1,0))","v":23},{"$f":"IFERROR(DX18/J18,\"-\")","v":2.7366943112454339E-4}]
[]
[null,"Note: This tab illustrates the data points states will be asked to report as part of initial and annual assessments of the availability of mental health services. In the future this tab will contain additional pop-up instructions."]